bitfinex-derivatives/quotes_ETHF0:USTF0_20250504
["timestamp","ask_amount","ask_price","bid_price","bid_amount"]
[1746349249583,1.09225,1830.8,1830.7,2.7311]
[1746349249783,5.40255282,1830.8,1830.7,2.7311]
[1746349249986,2.73102,1830.6,1829.9,18.72955233]
[1746349250288,1.09265,1830.2,1829.9,19.82232233]
[1746349250479,1.09264,1830.2,1830.0,5.2984]
[1746349250685,4.30039,1830.3,1830.1,1.734]
[1746349250885,1.09261,1830.2,1830.1,1.734]
[1746349251188,3.2078,1830.7,1830.1,6.734]
[1746349251390,0.27923695,1830.6,1830.2,1.09259]
[1746349251691,1.09243,1830.5,1830.3,2.5874]
[1746349251890,1.90793,1830.5,1830.4,1.734]
[1746349252593,6.70313,1830.5,1830.4,1.734]
[1746349253396,6.9822443,1830.5,1830.4,1.734]
[1746349253891,6.98223243,1830.5,1830.4,1.734]
[1746349254095,6.70313,1830.5,1830.4,1.734]
[1746349255502,6.98212018,1830.5,1830.4,1.734]
[1746349257597,10.58902108,1830.5,1830.4,1.734]
[1746349257791,10.30999938,1830.5,1830.4,1.734]
[1746349260295,9.21756938,1830.5,1830.1,1.09262]
[1746349260500,1.09258,1830.3,1830.2,1.6617]
[1746349262402,2.75253,1830.4,1830.2,1.6617]
[1746349262701,1.09255,1830.3,1830.2,1.6617]
[1746349264299,4.0233,1830.5,1830.2,1.6617]
[1746349264500,1.09255,1830.3,1830.2,1.6617]
[1746349265707,1.09254,1830.4,1830.2,2.75429]
[1746349266205,1.09254,1830.4,1830.3,1.5995]
[1746349267208,3.2078,1830.5,1830.3,1.5995]
[1746349267410,4.30023,1830.5,1830.4,1.682]
[1746349268210,1.09243,1830.5,1830.4,1.682]
[1746349269410,3.60686938,1830.6,1830.4,1.682]
[1746349269611,3.60686938,1830.6,1830.5,1.6905]
[1746349269802,4.69923938,1830.6,1830.5,1.6905]
[1746349270513,3.60686938,1830.6,1830.5,1.6905]
[1746349270810,3.60686938,1830.6,1830.5,2.78293]
[1746349271807,4.68762,1830.7,1830.5,2.78293]
[1746349272113,0.3875,1830.7,1830.6,1.6747]
[1746349272411,3.5953,1830.7,1830.6,1.6747]
[1746349272710,4.68761,1830.7,1830.6,1.6747]
[1746349272911,3.5953,1830.7,1830.6,1.6747]
[1746349275117,0.3875,1830.7,1830.6,2.76707]
[1746349275315,3.5953,1830.7,1830.6,1.6747]
[1746349275810,3.5953,1830.7,1830.6,2.76707]
[1746349276010,0.3875,1830.7,1830.6,2.76707]
[1746349281933,4.30002,1830.9,1830.7,1.0923]
[1746349282132,4.42456938,1831.0,1830.8,2.5325]
[1746349282331,4.42456938,1831.0,1830.9,1.6882]
[1746349282332,4.69899938,1831.0,1830.9,1.6882]
[1746349282525,3.88587146,1831.0,1830.9,2.78039]
[1746349282729,3.60686938,1831.0,1830.9,2.78039]
[1746349283422,4.69899938,1831.0,1830.9,1.6882]
[1746349283626,7.18089938,1831.0,1830.9,42.4882]
[1746349284335,6.08876938,1831.0,1830.9,42.4882]
[1746349285137,7.18089938,1831.0,1830.9,42.4882]
[1746349285337,3.57403,1831.0,1830.9,42.4882]
[1746349286031,3.57403,1831.0,1830.9,1.6882]
[1746349289136,2.4819,1831.0,1830.9,2.78039]
[1746349289336,2.4819,1831.0,1830.9,3.64649]
[1746349289538,3.57403,1831.0,1830.9,2.5543]
[1746349290641,4.68722,1831.1,1830.9,3.64648]
[1746349290938,4.68722,1831.1,1831.0,1.6102]
[1746349291339,6.40672,1831.1,1831.0,1.6102]
[1746349298347,0.3873,1831.1,1831.0,2.70233]
[1746349298938,0.80760297,1831.1,1831.0,7.70233]
[1746349300441,0.80760297,1831.1,1831.0,6.6102]
[1746349300748,0.80760297,1831.1,1831.0,2.70233]
[1746349302448,1.89967297,1831.1,1831.0,2.70233]
[1746349303344,1.89967297,1831.1,1831.0,1.6102]
[1746349304436,1.89967297,1831.1,1831.0,42.4102]
[1746349305047,1.89967297,1831.1,1831.0,43.50233]
[1746349305739,1.89967297,1831.1,1831.0,42.4102]
[1746349306648,1.89967297,1831.1,1831.0,44.3217]
[1746349307846,3.53097297,1831.1,1831.0,44.3217]
[1746349308751,3.53097297,1831.1,1831.0,45.41383]
[1746349308954,2.43890297,1831.1,1831.0,45.41383]
[1746349309450,0.80760297,1831.1,1831.0,45.41383]
[1746349313556,1.89967297,1831.1,1831.0,45.41383]
[1746349314543,0.80760297,1831.1,1831.0,45.41383]
[1746349315055,1.89967297,1831.1,1831.0,45.41383]
[1746349315256,0.80760297,1831.1,1831.0,45.41383]
[1746349315457,1.89967297,1831.1,1831.0,45.41383]
[1746349316554,0.80760297,1831.1,1831.0,45.41383]
[1746349318958,1.89967297,1831.1,1831.0,45.41383]
[1746349321356,0.80760297,1831.1,1831.0,45.41383]
[1746349322256,3.63777297,1831.1,1831.0,3.5217]
[1746349322453,3.21747,1831.1,1831.0,3.5217]
[1746349322957,6.42527,1831.1,1831.0,1.9115]
[1746349323158,7.53948119,1831.1,1831.0,1.9115]
[1746349324260,7.53941579,1831.1,1831.0,1.9115]
[1746349325360,7.53941579,1831.1,1831.0,2.7307]
[1746349325860,7.5393893,1831.1,1831.0,2.7307]
[1746349326961,4.3315893,1831.1,1831.0,2.7307]
[1746349327460,7.5393893,1831.1,1831.0,2.7307]
[1746349327760,3.4968893,1831.1,1831.0,2.7307]
[1746349327961,3.4968893,1831.1,1831.0,3.585]
[1746349328562,6.7046893,1831.1,1831.0,2.7307]
[1746349329464,6.70460694,1831.1,1831.0,2.7307]
[1746349330056,3.49680694,1831.1,1831.0,2.7307]
[1746349330865,6.70460694,1831.1,1831.0,2.7307]
[1746349331363,6.70456456,1831.1,1831.0,2.7307]
[1746349331563,11.00796301,1831.1,1831.0,2.7307]
[1746349333064,11.0079585,1831.1,1831.0,2.7307]
[1746349335063,12.80453852,1831.1,1831.0,2.7307]
[1746349336166,1.09213,1831.0,1830.9,1.5669]
[1746349336368,1.371394,1831.0,1830.9,1.5669]
[1746349338169,2.190594,1831.0,1830.9,1.5669]
[1746349338365,1.91133,1831.0,1830.9,1.5669]
[1746349338568,2.19056583,1831.0,1830.9,1.5669]
[1746349339868,4.64596583,1831.0,1830.9,1.5669]
[1746349340272,4.64595378,1831.0,1830.9,1.5669]
[1746349340568,5.50415378,1831.0,1830.9,1.5669]
[1746349342975,5.50413199,1831.0,1830.9,1.5669]
[1746349343972,5.50412432,1831.0,1830.9,1.5669]
[1746349345074,11.60419418,1831.0,1830.9,1.5669]
[1746349345774,11.60421428,1831.0,1830.9,1.5669]
[1746349347376,11.60422469,1831.0,1830.9,1.5669]
[1746349348676,1.09219,1830.9,1830.8,2.756]
[1746349348973,6.24461483,1830.9,1830.8,0.8443]
[1746349349676,6.24461483,1830.9,1830.8,2.4966]
[1746349350378,1.09225,1830.8,1830.7,1.9118]
[1746349350578,3.80367483,1830.8,1830.7,1.7261]
[1746349351080,3.80379465,1830.8,1830.7,1.7261]
[1746349351382,1.09261,1830.2,1830.1,8.11734663]
[1746349351677,1.91211,1830.2,1830.1,8.11734663]
[1746349351868,1.91211,1830.2,1830.1,48.09774663]
[1746349352678,1.91211,1830.2,1830.1,49.72634663]
[1746349354485,1.91211,1830.2,1830.1,51.42314663]
[1746349354968,1.91211,1830.2,1830.1,44.1254]
[1746349357176,0.8195,1830.2,1830.1,45.21807]
[1746349357376,0.8195,1830.2,1830.1,44.1254]
[1746349357682,0.8195,1830.2,1830.1,45.21807]
[1746349358284,1.91211,1830.2,1830.1,44.1254]
[1746349358687,0.8195,1830.2,1830.1,45.21807]
[1746349358887,1.91211,1830.2,1830.1,45.21807]
[1746349359075,0.8195,1830.2,1830.1,45.21807]
[1746349359279,0.8195,1830.2,1830.1,50.21807]
[1746349361587,0.8195,1830.2,1830.1,45.21807]
[1746349363289,0.8195,1830.2,1830.1,48.74007]
[1746349363991,0.8195,1830.2,1830.1,45.21807]
[1746349364299,0.8195,1830.2,1830.1,48.74007]
[1746349367594,0.8195,1830.2,1830.1,45.21807]
[1746349367785,0.8195,1830.2,1830.1,48.74007]
[1746349369692,0.8195,1830.2,1830.1,51.94787]
[1746349373590,4.30022,1830.6,1830.2,2.73152]
[1746349373795,6.03612,1830.6,1830.4,1.09245]
[1746349374189,1.09243,1830.5,1830.4,3.57735]
[1746349374592,2.82833,1830.5,1830.4,3.57735]
[1746349374792,2.94293,1830.5,1830.4,3.57735]
[1746349374989,1.8505,1830.5,1830.4,3.57735]
[1746349376297,0.1146,1830.5,1830.4,3.57735]
[1746349376593,0.1146,1830.5,1830.4,6.78515]
[1746349377198,0.1146,1830.5,1830.4,10.30515]
[1746349379497,1.20706,1830.5,1830.3,2.00501]
[1746349379702,2.499,1830.4,1830.3,2.00501]
[1746349379889,2.499,1830.4,1830.3,3.69621]
[1746349380085,2.499,1830.4,1830.3,43.58371]
[1746349381301,3.59149,1830.4,1830.3,43.58371]
[1746349381905,3.59149,1830.4,1830.3,41.89251]
[1746349382999,2.499,1830.4,1830.3,41.89251]
[1746349384505,3.59149,1830.4,1830.3,41.89251]
[1746349384695,2.499,1830.4,1830.3,41.89251]
[1746349385405,3.59149,1830.4,1830.3,41.89251]
[1746349387005,2.499,1830.4,1830.3,41.89251]
[1746349387704,2.49420985,1830.4,1830.3,41.89251]
[1746349388101,2.49420985,1830.4,1830.3,43.61821]
[1746349388601,0.1146,1830.5,1830.4,1.09249]
[1746349388798,0.1146,1830.5,1830.4,3.62319]
[1746349388997,0.1146,1830.5,1830.4,1.09249]
[1746349389198,1.20703,1830.5,1830.4,2.81819]
[1746349389600,0.1146,1830.5,1830.4,2.81819]
[1746349390006,0.1146,1830.5,1830.3,42.69752]
[1746349390200,0.822,1830.4,1830.3,41.89252]
[1746349390502,1.09255,1830.3,1830.2,4.1204]
[1746349390706,1.09255,1830.3,1830.2,5.21301]
[1746349391011,1.09255,1830.3,1830.2,4.30041]
[1746349391012,1.6776,1830.3,1830.2,4.30041]
[1746349391706,1.6776,1830.3,1830.2,1.09261]
[1746349391901,2.77018,1830.3,1830.1,55.81118663]
[1746349392207,2.77018,1830.3,1830.1,59.33118663]
[1746349392407,1.6776,1830.2,1830.1,59.33118663]
[1746349392709,1.6776,1830.2,1830.1,58.41838663]
[1746349393609,2.77021,1830.2,1830.1,58.41838663]
[1746349393909,1.6776,1830.2,1830.1,51.12064]
[1746349394313,1.09259,1830.3,1830.2,1.09261]
[1746349394511,2.76059,1830.3,1830.2,4.47011]
[1746349395006,1.91453,1830.4,1830.3,1.09255]
[1746349395202,1.91453,1830.4,1830.3,2.81505]
[1746349395914,2.87508,1830.5,1830.3,2.81505]
[1746349396102,2.87503,1830.5,1830.4,2.81499]
[1746349396408,0.1146,1830.5,1830.4,2.81499]
[1746349399411,0.1146,1830.5,1830.4,6.33499]
[1746349399603,0.1146,1830.5,1830.4,9.54279]
[1746349406424,0.1146,1830.5,1830.4,6.33499]
[1746349406622,0.1146,1830.5,1830.4,9.54279]
[1746349411334,0.1146,1830.5,1830.4,6.33499]
[1746349413623,0.1146,1830.5,1830.4,9.54279]
[1746349418729,1.7864,1830.5,1830.4,9.54279]
[1746349421533,1.7864,1830.5,1830.4,6.33499]
[1746349421932,0.1146,1830.5,1830.4,6.33499]
[1746349422141,0.1146,1830.5,1830.4,9.54279]
[1746349429036,0.1146,1830.5,1830.4,10.38069]
[1746349429537,0.1146,1830.5,1830.4,7.17289]
[1746349429739,0.1146,1830.5,1830.4,10.38069]
[1746349433042,0.1146,1830.5,1830.4,7.17289]
[1746349433243,0.1146,1830.5,1830.4,10.38069]
[1746349434843,0.9184,1830.5,1830.4,10.38069]
[1746349440839,0.9184,1830.5,1830.4,5.7682]
[1746349441040,0.9184,1830.5,1830.4,1.09249]
[1746349441442,2.6427,1830.5,1830.4,1.09249]
[1746349442048,3.73513,1830.5,1830.4,1.09249]
[1746349442445,2.6427,1830.5,1830.3,2.579]
[1746349442643,1.93669,1830.4,1830.3,0.913]
[1746349442846,1.689,1830.4,1830.3,2.00555]
[1746349443336,1.689,1830.4,1830.3,3.59905]
[1746349443939,2.4232,1830.4,1830.3,2.68605]
[1746349446247,2.4232,1830.4,1830.3,1.09255]
[1746349447050,1.5784,1830.4,1830.3,2.72325]
[1746349448448,2.67089,1830.4,1830.3,2.72325]
[1746349449453,1.5784,1830.4,1830.3,2.72325]
[1746349449750,2.67089,1830.4,1830.3,2.72325]
[1746349451851,1.5784,1830.4,1830.3,2.72325]
[1746349452050,2.67089,1830.4,1830.3,2.72325]
[1746349453749,1.5784,1830.4,1830.3,2.72325]
[1746349454655,0.7342,1830.4,1830.3,2.72325]
[1746349464447,0.7342,1830.4,1830.3,5.93105]
[1746349467167,0.7342,1830.4,1830.3,6.84455]
[1746349469254,0.7342,1830.4,1830.3,5.93105]
[1746349482176,3.1695,1830.4,1830.3,5.93105]
[1746349483172,0.7342,1830.4,1830.3,5.93105]
[1746349498577,3.2078,1830.9,1830.7,1.09229]
[1746349498780,2.4253,1830.8,1830.7,4.30006]
[1746349499080,9.66999971,1831.3,1830.7,3.2078]
[1746349499376,12.09529971,1831.3,1831.2,1.09201]
[1746349499977,12.09529971,1831.3,1831.2,3.44871]
[1746349500787,13.18724971,1831.3,1831.2,43.1567]
[1746349501086,18.18724971,1831.3,1831.2,40.8]
[1746349501384,21.39504971,1831.3,1831.2,40.8]
[1746349501681,1.09219,1830.9,1830.8,0.9104]
[1746349501873,4.29999,1830.9,1830.8,0.9104]
[1746349502078,8.2078,1830.9,1830.6,40.8]
[1746349502372,1.6097,1830.8,1830.7,1.09231]
[1746349502577,2.70199,1830.8,1830.6,41.89236]
[1746349502782,0.8149,1830.7,1830.6,42.80286]
[1746349502984,2.4246,1830.7,1830.6,42.80286]
[1746349503180,2.4246,1830.7,1830.6,41.89236]
[1746349505982,3.51691,1830.7,1830.6,41.89236]
[1746349506285,2.4246,1830.7,1830.6,41.89236]
[1746349507689,3.51691,1830.7,1830.6,41.89236]
[1746349507886,3.51691,1830.7,1830.6,1.09236]
[1746349508888,1.09237,1830.6,1830.5,46.31491]
[1746349509189,1.6462,1830.6,1830.5,45.40441]
[1746349510689,2.73857,1830.6,1830.4,6.91045]
[1746349510891,3.55697,1830.6,1830.4,6.91045]
[1746349511086,1.7347,1830.5,1830.4,6.91045]
[1746349511388,1.7347,1830.5,1830.4,46.79985]
[1746349515294,3.2078,1830.9,1830.6,1.09235]
[1746349515592,4.46231,1830.8,1830.6,1.09235]
[1746349515783,1.7286,1830.7,1830.6,1.09235]
[1746349518094,2.82091,1830.7,1830.6,1.09235]
[1746349518396,1.7286,1830.7,1830.6,1.09235]
[1746349518583,2.82091,1830.7,1830.6,1.09235]
[1746349519095,1.7286,1830.7,1830.6,1.09235]
[1746349519597,1.88579,1830.8,1830.6,1.09233]
[1746349519792,2.72961,1830.7,1830.6,1.6955]
[1746349519992,1.09237,1830.6,1830.4,44.0078]
[1746349520191,0.8491,1830.5,1830.4,46.79579]
[1746349520589,1.09249,1830.4,1830.3,2.5893]
[1746349520990,2.72979,1830.4,1830.3,3.3741]
[1746349521391,2.72979,1830.4,1830.3,4.46665]
[1746349522901,2.72979,1830.4,1830.3,3.3741]
[1746349523091,2.72979,1830.4,1830.3,4.46665]
[1746349524592,1.6373,1830.4,1830.3,4.46665]
[1746349524996,2.72979,1830.4,1830.3,4.46665]
[1746349525198,1.6373,1830.4,1830.3,4.46665]
[1746349527501,2.72979,1830.4,1830.3,4.46665]
[1746349527700,2.72979,1830.4,1830.3,3.3741]
[1746349528097,2.72979,1830.4,1830.3,0.8108]
[1746349528398,1.0929,1829.8,1829.6,1.09295]
[1746349528598,1.09285,1829.8,1829.7,1.09291]
[1746349528791,1.09297,1829.6,1829.5,0.8156]
[1746349529197,1.09306,1829.5,1829.3,2.77193]
[1746349529394,1.09306,1829.5,1829.4,41.89309]
[1746349529395,1.6198,1829.5,1829.4,41.89309]
[1746349529601,2.71283,1829.5,1829.4,1.6788]
[1746349529797,1.6198,1829.5,1829.4,2.77189]
[1746349529997,1.95054,1829.7,1829.4,2.77189]
[1746349530196,7.5369,1829.8,1829.4,2.77189]
[1746349530197,0.8191,1829.8,1829.7,1.09291]
[1746349530501,3.2078,1830.4,1830.3,1.09255]
[1746349530998,3.2078,1830.4,1830.3,41.89255]
[1746349531496,4.30029,1830.4,1830.3,40.8]
[1746349531804,3.2078,1830.4,1830.3,1.09255]
[1746349532497,3.2078,1830.4,1830.3,2.66135]
[1746349533292,3.2078,1830.4,1830.3,1.5688]
[1746349533803,3.2078,1830.4,1830.3,2.66135]
[1746349534301,6.03369,1830.4,1830.3,1.5688]
[1746349536998,6.03369,1830.4,1830.1,1.6755]
[1746349536999,1.09261,1830.2,1830.1,0.8161]
[1746349537303,1.09261,1830.2,1830.0,1.0927]
[1746349537696,1.09261,1830.2,1830.1,1.6993]
[1746349538001,2.73901,1830.2,1830.1,1.6993]
[1746349538804,1.0927,1830.1,1829.9,2.79204]
[1746349539005,2.7391,1830.1,1830.0,1.6993]
[1746349539905,1.09273,1830.0,1829.9,40.8]
[1746349540101,2.79063,1830.0,1829.9,1.6859]
[1746349540506,2.79063,1830.0,1829.9,42.4859]
[1746349541909,1.09279,1829.9,1829.7,1.09286]
[1746349542104,1.09285,1829.8,1829.7,1.6859]
[1746349542410,1.09285,1829.8,1829.7,42.4859]
[1746349542604,2.79075,1829.8,1829.7,42.4859]
[1746349542805,1.6979,1829.8,1829.7,2.77881]
[1746349543005,2.79075,1829.8,1829.7,1.6859]
[1746349543204,2.79075,1829.8,1829.7,2.493]
[1746349543400,1.6979,1829.8,1829.7,3.58591]
[1746349543611,0.8363,1829.9,1829.7,3.58591]
[1746349543812,1.92913,1829.9,1829.8,1.5666]
[1746349546411,3.65273,1829.9,1829.8,1.5666]
[1746349546809,3.65273,1829.9,1829.8,2.65945]
[1746349547012,3.65273,1829.9,1829.8,1.5666]
[1746349551712,3.65273,1829.9,1829.5,4.0619]
[1746349551713,2.5599,1829.9,1829.5,0.8541]
[1746349551910,1.09297,1829.6,1829.5,0.8541]
[1746349552916,1.09295,1829.7,1829.5,1.94713]
[1746349553417,1.09291,1829.7,1829.5,4.0619]
[1746349553917,4.0441,1829.9,1829.5,4.0619]
[1746349554114,4.60375,1830.0,1829.8,1.0928]
[1746349554319,4.60375,1830.0,1829.9,1.6102]
[1746349554511,4.8465,1830.1,1830.0,1.09273]
[1746349554512,3.2078,1830.1,1830.0,1.09273]
[1746349555712,4.30047,1830.1,1829.9,2.70294]
[1746349556517,3.2078,1830.1,1830.0,1.09273]
[1746349556718,1.88105,1830.2,1830.0,1.09273]
[1746349557020,1.09265,1830.2,1830.0,1.09273]
[1746349557219,13.79739,1830.3,1830.1,1.09267]
[1746349557518,13.79739,1830.3,1830.2,0.8308]
[1746349558510,3.2078,1830.5,1830.2,0.8308]
[1746349558715,4.30026,1830.5,1830.3,1.93313]
[1746349559621,1.09249,1830.4,1830.3,0.8406]
[1746349560021,4.30027,1830.5,1830.3,1.93315]
[1746349560421,1.09249,1830.4,1830.3,0.8406]
[1746349562919,1.09255,1830.3,1830.2,0.8308]
[1746349563221,2.67565,1830.3,1830.2,0.8308]
[1746349563919,5.5784,1830.3,1829.8,3.2078]
[1746349564120,1.5831,1830.2,1829.8,1.95203]
[1746349564314,1.09279,1829.9,1829.8,1.95203]
[1746349564515,1.5831,1830.2,1829.8,0.8592]
[1746349564915,1.09272,1830.1,1829.9,1.09276]
[1746349565416,1.09273,1830.0,1829.8,1.95201]
[1746349565919,1.09271,1830.1,1829.9,1.09276]
[1746349566422,1.09273,1830.0,1829.9,1.09276]
[1746349566822,1.09271,1830.1,1829.9,1.09276]
[1746349567022,1.09273,1830.0,1829.8,1.95201]
[1746349567413,1.09279,1829.9,1829.8,0.8592]
[1746349567620,1.09291,1829.7,1829.6,0.8657]
[1746349568421,3.542,1829.9,1829.6,0.8657]
[1746349568623,3.542,1829.9,1829.8,1.09285]
[1746349568822,1.09276,1830.0,1829.8,1.09285]
[1746349569121,1.09276,1830.0,1829.9,0.8314]
[1746349569324,1.09276,1830.0,1829.9,2.524]
[1746349571418,2.69266,1830.0,1829.9,2.524]
[1746349571619,1.5999,1830.0,1829.6,5.16642]
[1746349571819,1.09291,1829.7,1829.6,4.0735]
[1746349572224,1.09291,1829.7,1829.6,5.6991]
[1746349573322,1.09291,1829.7,1829.6,6.79207]
[1746349573517,1.09291,1829.7,1829.6,5.6991]
[1746349573722,1.09291,1829.7,1829.6,2.4913]
[1746349573923,2.68451,1829.7,1829.6,2.4913]
[1746349578123,1.09291,1829.7,1829.6,2.4913]
[1746349578723,1.09291,1829.7,1829.6,3.58427]
[1746349578928,1.09291,1829.7,1829.6,2.4913]
[1746349579424,1.09291,1829.7,1829.6,3.58427]
[1746349579624,1.09291,1829.7,1829.6,2.4913]
[1746349580329,9.48283,1829.9,1829.6,2.4913]
[1746349580330,3.2078,1829.9,1829.6,7.4913]
[1746349580629,1.09287,1829.8,1829.7,1.6778]
[1746349583529,4.30063,1829.9,1829.7,2.77071]
[1746349583729,3.2078,1829.9,1829.8,1.95175]
[1746349583931,3.2078,1829.9,1829.8,3.63995]
[1746349584231,1.0927,1830.1,1829.9,1.09275]
[1746349584523,6.7508,1830.2,1830.0,2.5319]
[1746349584729,1.09252,1830.4,1830.2,1.0926]
[1746349584928,1.09252,1830.4,1830.3,1.6882]
[1746349585323,2.72392,1830.4,1830.3,1.6882]
[1746349585637,5.93172,1830.4,1830.3,1.6882]
[1746349586526,1.09267,1830.1,1830.0,0.8437]
[1746349586723,1.09273,1830.0,1829.9,1.6249]
[1746349587531,1.96223,1830.0,1829.9,1.6249]
[1746349588730,1.96223,1830.0,1829.8,3.998]
[1746349588731,1.09285,1829.8,1829.7,0.7971]
[1746349588926,1.6434,1829.9,1829.7,2.5282]
[1746349589124,6.7508,1830.2,1829.8,2.82392]
[1746349589329,6.7508,1830.2,1829.7,0.7971]
[1746349589330,9.2539,1830.2,1829.9,2.5635]
[1746349589533,1.09269,1830.1,1830.0,2.5485]
[1746349589726,6.7508,1830.2,1830.0,2.5485]
[1746349589932,1.0926,1830.3,1830.1,2.82377]
[1746349590124,2.5031,1830.4,1830.2,1.7311]
[1746349590324,3.59559,1830.4,1830.3,1.6498]
[1746349595436,3.59559,1830.4,1830.3,0.8324]
[1746349595734,3.59559,1830.4,1830.2,1.7311]
[1746349595735,1.09255,1830.3,1830.2,1.7311]
[1746349596034,2.71695,1830.3,1830.2,1.7311]
[1746349598535,1.09273,1830.0,1829.9,1.6731]
[1746349598735,1.09273,1830.0,1829.9,2.76589]
[1746349599039,1.09273,1830.0,1829.9,1.6731]
[1746349599336,1.6114,1830.2,1829.9,2.76587]
[1746349599337,1.09271,1830.1,1829.9,2.76587]
[1746349599731,1.6114,1830.2,1829.9,1.6731]
[1746349599732,1.09273,1830.0,1829.9,1.6731]
[1746349599936,1.09273,1830.0,1829.9,3.4051]
[1746349600136,1.72823,1830.0,1829.9,5.0843]
[1746349600940,0.6355,1830.0,1829.9,6.17709]
[1746349603341,1.72823,1830.0,1829.9,6.17709]
[1746349603938,1.72823,1830.0,1829.9,5.0843]
[1746349604640,1.72823,1830.0,1829.9,6.17709]
[1746349605035,1.72823,1830.0,1829.9,5.0843]
[1746349606436,0.6355,1830.0,1829.9,6.17709]
[1746349613446,1.72823,1830.0,1829.9,6.17709]
[1746349614740,1.72823,1830.0,1829.9,5.0843]
[1746349614940,1.72823,1830.0,1829.9,6.17709]
[1746349615141,4.27213,1830.0,1829.9,6.17709]
[1746349615654,1.72823,1830.0,1829.9,6.17709]
[1746349616454,0.6355,1830.0,1829.9,6.17709]
[1746349618149,4.28791128,1830.0,1829.9,6.17709]
[1746349619751,0.6355,1830.0,1829.9,6.17709]
[1746349620250,1.72823,1830.0,1829.9,5.0843]
[1746349620547,1.72823,1830.0,1829.9,2.5236]
[1746349620751,3.36533,1830.0,1829.9,1.6792]
[1746349622458,15.10713,1830.0,1829.9,1.6792]
[1746349625148,18.79513,1830.0,1829.9,1.6792]
[1746349627155,13.79513,1830.0,1829.9,1.6792]
[1746349628154,10.10713,1830.0,1829.9,1.6792]
[1746349629053,8.47003,1830.0,1829.9,1.6792]
[1746349629256,0.6355,1830.0,1829.9,11.09949]
[1746349630154,0.6355,1830.0,1829.9,6.09949]
[1746349631551,0.6355,1830.0,1829.9,5.0067]
[1746349631751,1.72823,1830.0,1829.9,5.0067]
[1746349631946,1.72823,1830.0,1829.9,1.6792]
[1746349632252,8.95023,1830.0,1829.9,1.6792]
[1746349632454,12.22123,1830.0,1829.9,1.6792]
[1746349636256,8.53323,1830.0,1829.9,1.6792]
[1746349641059,12.22123,1830.0,1829.9,1.6792]
[1746349643465,12.22123,1830.0,1829.9,0.57896]
[1746349643764,1.09291,1829.7,1829.6,1.6627]
[1746349645367,1.72861,1829.7,1829.6,1.6627]
[1746349645760,4.93641,1829.7,1829.6,1.6627]
[1746349647366,1.72861,1829.7,1829.6,1.6627]
[1746349648268,5.3737804,1829.7,1829.6,1.6627]
[1746349649973,1.72861,1829.7,1829.6,1.6627]
[1746349650468,4.21171,1829.7,1829.6,1.6627]
[1746349651670,7.41951,1829.7,1829.6,1.6627]
[1746349652970,11.0646804,1829.7,1829.6,1.6627]
[1746349657170,11.76175438,1829.7,1829.6,1.6627]
[1746349657966,1.09297,1829.6,1829.5,1.6819]
[1746349659168,2.73259,1829.5,1829.0,3.2078]
[1746349659476,1.09326,1829.1,1829.0,3.2078]
[1746349659669,1.09326,1829.1,1829.0,44.0078]
[1746349659867,1.09326,1829.1,1829.0,49.0078]
[1746349660571,1.09326,1829.1,1829.0,44.0078]
[1746349660771,1.09326,1829.1,1829.0,42.4375]
[1746349661070,1.09326,1829.1,1829.0,1.6375]
[1746349661874,1.90296,1829.1,1829.0,1.6375]
[1746349662268,1.90296,1829.1,1829.0,3.2879]
[1746349663977,2.72296,1829.1,1829.0,3.2879]
[1746349666376,2.72296,1829.1,1828.8,3.2078]
[1746349666377,7.57071,1829.1,1828.6,3.2078]
[1746349666676,1.09332,1829.0,1828.9,1.5838]
[1746349666877,1.09332,1829.0,1828.9,42.3838]
[1746349667373,1.09332,1829.0,1828.9,1.5838]
[1746349667874,2.83032,1829.0,1828.9,1.5838]
[1746349668276,1.09332,1829.0,1828.9,1.5838]
[1746349668776,4.347,1829.1,1828.9,4.7916]
[1746349668972,5.44029,1829.1,1829.0,0.8005]
[1746349669179,5.44029,1829.1,1829.0,2.4067]
[1746349676982,4.347,1829.1,1828.7,41.89347]
[1746349677184,1.09344,1828.8,1828.7,40.8]
[1746349677374,1.09344,1828.8,1828.7,42.5406]
[1746349678484,1.91364,1828.8,1828.7,42.5406]
[1746349679589,1.91364,1828.8,1828.7,1.7406]
[1746349680475,1.91364,1828.8,1828.7,42.5406]
[1746349681275,1.91364,1828.8,1828.7,0.41578]
[1746349681478,1.0935,1828.7,1828.6,0.8093]
[1746349681683,5.1497,1828.7,1828.6,0.8093]
[1746349681985,6.843,1828.7,1828.6,0.8093]
[1746349682385,10.371,1828.7,1828.6,0.8093]
[1746349683277,7.1632,1828.7,1828.6,0.8093]
[1746349683979,3.528,1828.7,1828.6,4.0171]
[1746349684183,1.91367,1828.8,1828.6,4.0171]
[1746349684489,0.8202,1828.8,1828.6,4.0171]
[1746349684686,0.8202,1828.8,1828.7,1.5792]
[1746349684878,0.8202,1828.8,1828.7,2.6727]
[1746349685081,0.8202,1828.8,1828.7,1.5792]
[1746349685484,0.8202,1828.8,1828.7,2.6727]
[1746349688286,1.91364,1828.8,1828.7,2.6727]
[1746349688486,0.8202,1828.8,1828.7,2.6727]
[1746349688991,1.91364,1828.8,1828.7,2.6727]
[1746349689191,0.8202,1828.8,1828.7,2.6727]
[1746349689986,0.8202,1828.8,1828.7,7.6727]
[1746349690188,1.09317,1829.3,1829.2,1.09321]
[1746349690382,1.09302,1829.6,1829.2,3.2078]
[1746349690589,1.09299,1829.6,1829.4,4.30085]